Cogmind - Beta 13 @@@ ROGUE MODE // 2024.04.14 @ 20:14:59 Player: nllptrxc Result: Destroyed by G-34 Mercenary with Small Laser Performance ------------- Evolutions (0) 0 Regions Visited (1) 200 Robots Destroyed (19) 95 Value Destroyed (440) 440 Prototype IDs (2) 40 Alien Tech Used (0) 0 Bonus (0) 0 TOTAL SCORE: 775 Bonus ------- None Cogmind --------- Core Integrity 0/250 Matter 295/300 Energy 123/125 System Corruption 0% Temperature Cool (7) Movement Treading (480) Ox4 Location -10/Materials Parts ------- > --- POWER (1) -------- Light Ion Engine > --- PROPULSION (2) --- Light Treads > --- UTILITY (2) ------ Huge Storage Unit Light Armor Plating > --- WEAPON (2) ------- Medium Laser Hammer > --- INVENTORY (25) --- Light Ion Engine Wheel Huge Storage Unit Seismic Detector Light Armor Plating Particle Gun Assault Rifle Light Assault Rifle Grenade Launcher Datajack Mining Laser Peak State ------------ > --- POWER ------------ Ion Engine > --- PROPULSION ------- Light Treads Light Treads > --- UTILITY ---------- Heat Sink Small Storage Unit > --- WEAPON ----------- Particle Gun Light Assault Rifle > --- INVENTORY -------- Light Ion Engine Light Treads Wheel Seismic Detector Medium Laser Datajack Mining Laser Hammer [Rating: 8] Favorites ----------- Power Ion Engine Engine Ion Engine Propulsion Light Treads Treads Light Treads Utility Huge Storage Unit Device Heat Sink Storage Huge Storage Unit Protection Light Armor Plating Weapon Light Assault Rifle Energy Gun Medium Laser Ballistic Gun Light Assault Rifle Impact Weapon Hammer Build | -11 -10 ------- Run | Yrd Mat Slots Evolved . | . . Power . | . . Propulsion . | . . Utility . | . . Weapon . | . . Parts Attached 15 | 6 9 Power 2 | 1 1 Engine 2 | 1 1 Core . | . . Reactor . | . . Propulsion 4 | 2 2 Treads 4 | 2 2 Leg . | . . Wheel . | . . Hover . | . . Flight . | . . Utility 4 | 1 3 Device 1 | . 1 Storage 2 | 1 1 Processor . | . . Hackware . | . . Protection 1 | . 1 Artifact . | . . Weapon 5 | 2 3 Energy Gun 2 | . 2 Energy Cannon . | . . Ballistic Gun 2 | 2 . Ballistic Cannon . | . . Launcher . | . . Special Weapon . | . . Impact Weapon 1 | . 1 Slashing Weapon . | . . Piercing Weapon . | . . Special Melee Weapon . | . . Unidentified Prototypes . | . . Parts Lost 4 | . 4 Power 1 | . 1 Propulsion 2 | . 2 Utility 1 | . 1 Weapon . | . . Highest Loss Streak 2 | . 2 To Critical Strikes . | . . Average Slot Usage (%) 88 | . 88 Engine 13 | . 13 Treads 27 | . 27 Device 3 | . 3 Storage 14 | . 14 Energy Gun 14 | . 14 Ballistic Gun 8 | . 8 Impact Weapon 4 | . 4 Naked Turns . | . . Heaviest Build 91 | 12 91 Greatest Support 40 | 40 40 Greatest Overweight (x) 4 | . 4 Average Overweight (x) . | . . Largest Inventory Capacity 25 | 8 25 Average Capacity 17 | 7 18 Most Carried 12 | 4 12 Average Carried 7 | 1 8 Final Capacity 25 | 8 25 Final Carried 11 | 4 11 Class Distribution -------------------- 100% | Mutant Dominant Class ---------------- Mutant | -10/Materials Resources | -11 -10 ----------- Run | Yrd Mat Matter Collected 401 | 276 125 Remotely . | . . Salvage Created 722 | 100 622 Parts 38 | 6 32 Haulers Intercepted 2 | . 2 Recyclers Shooed 1 | . 1 Parts Field Recycled . | . . Retrieved Matter . | . . Parts Self-Destructed . | . . Prevented . | . . Kills | -11 -10 ------- Run | Yrd Mat Combat Hostiles Destroyed 13 | . 13 Melee 2 | . 2 Guns 10 | . 10 Classes Destroyed 8 | 2 6 Builder 1 | . 1 Tunneler 1 | 1 . Hauler 2 | . 2 Recycler 1 | 1 . Watcher 1 | . 1 Swarmer 3 | . 3 Grunt 9 | . 9 Subdweller 1 | . 1 Best Kill Streak 5 | 2 5 Combat Bots Only 5 | . 5 Max Kills in Single Turn 1 | 1 1 Gunslinging . | . . Exploded . | . . Melee 1 | . 1 Uniques/NPCs Destroyed . | . . Combat | -11 -10 -------- Run | Yrd Mat Hostile Shots Fired 94 | . 94 Missed 24 | . 24 Damage Taken 949 | . 949 Core 253 | . 253 Absorbed by Shields . | . . Core Remaining (%) 100 | 100 . Volleys Fired 57 | 8 49 Largest 2 | 2 2 Hottest 115 | 40 115 Shots Fired 106 | 16 90 Gun 106 | 16 90 Cannon . | . . Launcher . | . . Special . | . . Kinetic 72 | 16 56 Thermal 34 | . 34 Explosive . | . . Electromagnetic . | . . Robot Hit Streak 14 | 4 14 Robot Miss Streak 6 | 1 6 Penetration Max . | . . Secondary Targets . | . . Shots Hit Robots 86 | 11 75 Core Hits 36 | 4 32 Critical Kills . | . . Critical Parts Destroyed 4 | . 4 Critical Strikes 5 | . 5 Burn 1 | . 1 Smash 4 | . 4 Melee Attacks 19 | . 19 Impact 19 | . 19 Slashing . | . . Piercing . | . . Sneak Attacks . | . . Combat Hostiles . | . . Follow-up Attacks . | . . Damage Inflicted 1248 | 89 1159 Guns 713 | 89 624 Cannons . | . . Explosions . | . . Melee 498 | . 498 Ramming 37 | . 37 Kinetic 365 | 89 276 Thermal 348 | . 348 Explosive . | . . Electromagnetic . | . . Impact 498 | . 498 Slashing . | . . Piercing . | . . Highest Corruption . | . . Average Corruption . | . . Corruption Purged . | . . Corruption Blocked . | . . Overload Shots . | . . Overflow Damage 89 | . 89 Projectiles . | . . Explosions . | . . Melee 89 | . 89 Knockbacks 4 | . 4 Impact 4 | . 4 Kinetic . | . . Secondary . | . . Self-Inflicted Damage . | . . Shots . | . . Rammed 8 | . 8 Targets Rammed 8 | . 8 Kicked . | . . Crushed . | . . Highest Temperature 236 | . 236 Average Temperature 88 | . 88 Received Heat Transfer 315 | . 315 Siege Activations . | . . Robots Corrupted . | . . Combat Hostiles . | . . Parts Fried . | . . Impact Corruptions 4 | . 4 Robots Melted . | . . Combat Hostiles . | . . Parts Melted 4 | . 4 Heat Transferred 925 | . 925 Parts Sabotaged . | . . Parts Stolen . | . . Parts Stripped . | . . Power Chain Reactions . | . . Alert | -11 -10 ------- Run | Yrd Mat Peak Influence 157 | 10 157 Initial 6 | . 6 Average 35 | 4 37 Maximum Alert Level . | . . Low Security (%) 100 | 100 100 Level 1 . | . . Level 2 . | . . Level 3 . | . . Level 4 . | . . Level 5 . | . . High Security . | . . Max Security . | . . Squads Dispatched 2 | . 2 Investigation 2 | . 2 Extermination . | . . Reinforcement . | . . Assault . | . . Garrison . | . . Intercept . | . . Searches Triggered . | . . Construction Impeded . | . . Haulers Reinforced . | . . Active Scanning Responses . | . . Cargo Convoy Interrupts . | . . Stealth | -11 -10 --------- Run | Yrd Mat Distress Signals 1 | . 1 Communications Jammed . | . . Distress Signals . | . . Times Spotted 29 | . 29 Peak Tracking Total 3 | . 3 Tactical Retreats 4 | . 4 Traps | -11 -10 ------- Run | Yrd Mat Traps Triggered 2 | . 2 Indirectly . | . . Trap Hack Attempts . | . . Triggered . | . . Disarmed . | . . Reprogrammed . | . . Reused . | . . Traps Extracted . | . . Installed . | . . Triggered . | . . Machines | -11 -10 ---------- Run | Yrd Mat Machines Disabled . | . . Max in Single Turn . | . . Machines Repaired . | . . Machines Dismantled . | . . Machines Sabotaged . | . . Overloaded Fab Kills . | . . Hacking | -11 -10 --------- Run | Yrd Mat Machines Accessed 7 | . 7 Terminals 6 | . 6 Fabricators . | . . Repair Stations 1 | . 1 Recycling Units . | . . Scanalyzers . | . . Garrison Access . | . . Total Hacks 22 | . 22 Successful 10 | . 10 Failed 12 | . 12 Catastrophic 2 | . 2 Database Lockouts . | . . Manual 7 | . 7 Terminals 20 | . 20 Fabricators . | . . Repair Stations 2 | . 2 Recycling Units . | . . Scanalyzers . | . . Garrison Access . | . . Terminal Hacks 9 | . 9 Robot Analysis 1 | . 1 Prototype ID Bank 1 | . 1 Terminal Index 1 | . 1 Locate Traps 2 | . 2 Hauler Manifests 1 | . 1 Registered Components 1 | . 1 Zone Layout 2 | . 2 Fabricator Hacks . | . . Repair Station Hacks . | . . Recycling Unit Hacks . | . . Scanalyzer . | . . Garrison Access Hacks . | . . Unauthorized Hacks 1 | . 1 Terminals 1 | . 1 Operators 1 | . 1 Fabricators . | . . Repair Stations . | . . Recycling Units . | . . Scanalyzers . | . . Garrison Access . | . . Data Cores Recovered . | . . Used . | . . Hacking Detections 7 | . 7 Full Trace Events . | . . Feedback Events . | . . Feedback Blocked . | . . Robot Schematics Acquired . | . . Robots Built . | . . Authchips . | . . Time . | . . Total Robot Build Rating . | . . Part Schematics Acquired . | . . Parts Built . | . . Authchips . | . . Time . | . . Total Part Build Rating . | . . Parts Repaired . | . . Time . | . . Parts Recycled . | . . Recycled Matter . | . . Retrieved Matter . | . . Retrieved Components . | . . Parts Scanalyzed . | . . Part Schematics Acquired . | . . Parts Damaged . | . . Bothacking | -11 -10 ------------ Run | Yrd Mat Used RIF Installer . | . . Robots Hacked . | . . Non-combat . | . . Combat . | . . Robot Hacks Applied . | . . Relay Couplers Released . | . . Fabnet Peak Effective % . | . . Robots Rewired . | . . Allies Hacked . | . . Hacks Repelled . | . . Allies | -11 -10 -------- Run | Yrd Mat Total Allies . | . . Largest Group . | . . Highest-Rated Group . | . . Highest-Rated Ally . | . . Total Orders . | . . Ally Attacks . | . . Total Damage . | . . Kills . | . . Allies Corrupted . | . . Allies Melted . | . . Intel | -11 -10 ------- Run | Yrd Mat Robot Analysis Total 1 | . 1 Derelict Logs Recovered . | . . Drone Launches . | . . Drone Recoveries . | . . Exploration | -11 -10 ------------- Run | Yrd Mat Turns Passed 1833 | 113 1720 Spaces Moved 684 | 53 631 Core 4 | 4 . Treads 680 | 49 631 Legs . | . . Wheels . | . . Hover . | . . Flight . | . . Fastest Speed 50 | 50 160 Average Speed 227 | 151 233 Slowest Speed 480 | 160 480 Overloaded Moves . | . . Propulsion Burnouts . | . . Robots Hopped . | . . Cave-ins Triggered . | . . Exploration Rate (%) 41 | 4 79 Regions Visited 1 Branch Regions . Pre-discovered Areas . | . . Known Exits Taken . | . . Unknown Exits Taken 1 | 1 . Scrap Searched . | . . Spaces Dug . | . . Terrain Destroyed . | . . Melee . | . . Projectile . | . . AOE . | . . Terrain Rammed . | . . Walls Destroyed . | . . Machines Disabled . | . . Actions | -11 -10 --------- Run | Yrd Mat Total 831 | 70 761 Wait 34 | . 34 Move 683 | 52 631 Hop . | . . Pick Up 13 | 4 9 Fast Attach 8 | 6 2 Attach 2 | . 2 Detach . | . . Swap 5 | . 5 Drop 2 | . 2 Fire 57 | 8 49 Melee 19 | . 19 Ram . | . . Kick . | . . Crush 8 | . 8 Escape Stasis . | . . Rewire . | . . Trap . | . . Miscellaneous . | . . Route ------- -11/Scrapyard -10/Materials (discovered 2 exits: [*Mat x2]) History --------- Turn | Location | Event 24 | -11/Scrapyard | Discovered new exit (range 15) 114 | -11/Scrapyard | Entered Materials 305 | -10/Materials | Build established: Mutant 687 | -10/Materials | Discovered new exit (range 10) 714 | -10/Materials | Derelicts attacked the area 1190 | -10/Materials | Discovered new exit (range 14) 1234 | -10/Materials | Core integrity fell below 50% 1821 | -10/Materials | Core integrity fell below 20% 1834 | -10/Materials | Destroyed by G-34 Mercenary with Small Laser Last Messages --------------- 01531_ Acquired Grenade Launcher. 01532_ Acquired 10 matter. 01539_ Acquired Lgt. Ion Engine. 01540_ Acquired 10 matter. 01595_ R-06 Scavenger collects Terrain Scan Processor. 01623_ A-02 Transporter suffers critical hit (Burn). 01623_ Weight Redist. System melted. 01623_ A-02 Transporter destroyed. 01628_ Acquired Lgt. Armor Plating. 01635_ Acquired Huge Storage Unit. 01640_ R-06 Scavenger collects Huge Storage Unit. 01643_ Acquired Lgt. Armor Plating. 01644_ R-06 Scavenger collects Lgt. Armor Plating. 01647_ R-06 Scavenger collects Huge Storage Unit. 01665_ K-01 Serf collects debris. 01798_ Triggered Alarm Trap. 01798_ An alarm sounds. 01798_ ALERT: Alarm triggered, dispatching investigation squad. 01816_ Lgt. Treads destroyed. 01823_ G-34 Mercenary destroyed. Map ----- +----------------------------------------------------+ | | | | | | | | | | | | | | | | | | | ???????????????????????????????????????????####### | | ???????????????????????????????????????????# = | | ???????????????????????????????????????????# | | ???????????????????????????????????????????# | | ???????????????????????????????????????????# | | ???????????????????#???????????????????????# """ | | ???????????????????# ??????????????????????# "R | | ????????????????????? ?????????????????????# """ | | ?????????????????????? #####+######????????# | | ??????????????????????? ?????????#####+# | | ???????????????????????? ????????????# | | ????????????????????????? ?????????????# | | ??????????????????????????# #####+####?????# | | ????????????????########### # #?????# | | ????????????????# ==# # #?????# | | ????????????????# """ !%g +%* #?????### # | | ????????????????# "Y" =@# # #???????# # | | ????????????????# """ # # #???????# # | | ????????????????# """ # #! === ######### # | | ????????????????# """ # # === ## """ # # | | ????????????????# ! # # === ## """ # # | | ????????????????# # # ## """ + | | ????????????????########### ########### % # # | | ??????????????????????????# #?????????# # # | | ??????????????????????????# % #?????????# # # | | ??????????????????????????# ########??######## # | | ??????????????????????????# # #????????## # | | ??????????????????????????# # """ #????????# | | ??????????????#######?????# # """ #????????# | | ??????????????# [####### + """ #????????# | | ???????######## % # #????????## # | | ????? ?# ## T % # #?????????# # | | ????? ?# ## %%=###########??????# # | | ????? ?# ## ####### !%### #??????# # | | ????? ?# """ ### ########% % "# """ #??????# # | | ????? ?# """ #?# # """ #== Y"# """ #??????#%# | | ????? ## """ #?# # "" + ""# """ #??????# # | | ????# ## #?# # """ # ### % #??????# # | | ????# ## """ #?# # # ######/########### # | | ????# ## """ #?# =# # % % % | | ????# ## """ #?# |%# # #################### | +----------------------------------------------------+ Best States ------------- Heat Dissipation 35 Energy Generation 10 Energy Capacity 250 Matter Stores 300 Matter Capacity 300 Sight Range 16 Terrain Scan Density 10 Armor Coverage 150 Evasion (%) 40 Recoil Reduction 2 Item Schematics ----------------- None Robot Schematics ------------------ None Fabricated ------------ Nothing Alien Tech Used ----------------- None Achievements -------------- None Challenges ------------ None Game ------ Seed GaussThermicArachnoskeleton Manual? 0 Play Time 00:15:31 Cumulative 21.4 hours Start 2024.04.14 @ 20:01:28 End 2024.04.14 @ 20:14:59 Sessions 1 Manual Loads 0 Difficulty Rogue Special Mode None Game No. 14 Rogue 14 Adventurer 0 Explorer 0 Win Type - Total 0 Types 0/0/0/0/0/0/0/0/0 Lore% 22 Gallery% 18 Achievement% 24 Wizard Run 0 Options --------- Layout 0 ASCII 0 Keyboard 0 Movement Numpad Keybinds 0 Fullscreen 1 Font 18/SmallcapsGlow Map View 76x50 Zoom Use 0% Tactical HUD 1 Map Filters NONE Filters NONE Steam 1 RUN: 000db16f-6a27-4a06-921c-f52608a3d300